bitfinex-derivatives/quotes_SOLF0:USTF0_20240905
["timestamp","ask_amount","ask_price","bid_price","bid_amount"]
[1725508783956,0.05670688,131.61,131.58,13.17861945]
[1725508785348,3.85560688,131.61,131.58,13.17861945]
[1725508785548,3.85560688,131.61,131.58,9.37901945]
[1725508788263,3.85560688,131.61,131.58,0.04901945]
[1725508789468,0.05670688,131.61,131.58,0.04901945]
[1725508790169,0.05670688,131.61,131.6,3.7992]
[1725508792363,0.05670688,131.61,131.59,3.7993]
[1725508792765,0.05670688,131.61,131.59,3.7992]
[1725508798268,0.05670688,131.61,131.59,3.7994]
[1725508798468,2.7161,131.7,131.59,9.33]
[1725508798670,9.33,131.66,131.59,9.33]
[1725508798865,9.33,131.64,131.56,1.3477]
[1725508799076,9.33,131.64,131.57,10.85011384]
[1725508799271,9.33,131.64,131.57,9.33]
[1725508799474,0.05010571,131.62,131.6,3.7989]
[1725508801475,9.33,131.61,131.59,0.04850278]
[1725508802276,13.1292,131.6,131.59,0.04850278]
[1725508802671,3.7992,131.6,131.59,0.04850278]
[1725508802981,13.1292,131.6,131.59,0.04850278]
[1725508803471,3.7992,131.6,131.59,0.04850278]
[1725508803676,13.1292,131.6,131.59,0.04850278]
[1725508804974,9.33,131.6,131.5,1.3338]
[1725508805177,9.33,131.57,131.51,1.52072161]
[1725508805476,1.3983,131.61,131.52,9.33]
[1725508805868,1.3983,131.61,131.55,0.04837927]
[1725508806072,0.05410154,131.58,131.55,0.04837927]
[1725508806874,13.18390154,131.58,131.55,0.04837927]
[1725508807182,9.38410154,131.58,131.55,0.04837927]
[1725508807575,3.8001,131.57,131.55,0.04837927]
[1725508808079,0.05410154,131.58,131.55,3.84897927]
[1725508809282,3.85390154,131.58,131.55,0.04837927]
[1725508810282,0.05410154,131.58,131.55,3.84897927]
[1725508811284,3.85390154,131.58,131.55,0.04837927]
[1725508814388,0.05410154,131.58,131.55,3.84887927]
[1725508814588,0.05410154,131.58,131.55,0.04837927]
[1725508815088,3.85400154,131.58,131.55,0.04837927]
[1725508816190,3.8001,131.57,131.55,0.04837927]
[1725508816892,3.85390154,131.58,131.55,0.04837927]
[1725508817193,0.05410154,131.58,131.55,3.84897927]
[1725508818387,3.85390154,131.58,131.55,3.84897927]
[1725508820486,3.85390154,131.58,131.55,0.04837927]
[1725508821491,3.8001,131.57,131.55,0.04837927]
[1725508825883,13.1303,131.56,131.55,0.04837927]
[1725508826388,16.97665852,131.56,131.55,0.04837927]
[1725508827892,13.1303,131.56,131.55,0.04837927]
[1725508828484,3.8003,131.56,131.55,0.04837927]
[1725508828688,7.55828357,131.56,131.55,0.04837927]
[1725508828889,16.88828357,131.56,131.55,0.04837927]
[1725508830695,13.08798357,131.56,131.48,3.80972274]
[1725508830894,9.33,131.53,131.47,9.33]
[1725508831199,9.33,131.53,131.48,3.8024]
[1725508831594,0.05550198,131.52,131.49,0.05403212]
[1725508831796,3.85720198,131.52,131.49,0.05403212]
[1725508833796,3.8019,131.51,131.49,0.05403212]
[1725508836298,3.85700198,131.52,131.49,0.05403212]
[1725508838506,13.18700198,131.52,131.49,0.05403212]
[1725508842006,0.05550198,131.52,131.49,0.05403212]
[1725508842803,0.05550198,131.52,131.49,9.38403212]
[1725508843000,0.05550198,131.52,131.49,0.05403212]
[1725508844407,0.05550198,131.52,131.5,3.8018]
[1725508844803,0.05550198,131.52,131.49,3.85623212]
[1725508845207,0.05550198,131.52,131.49,0.05403212]
[1725508845402,9.38550198,131.52,131.49,0.05403212]
[1725508846308,9.33,131.5,131.49,0.05403212]
[1725508847012,0.05550198,131.52,131.49,0.05403212]
[1725508847206,9.33,131.51,131.49,0.05403212]
[1725508847900,13.132,131.51,131.49,0.05403212]
[1725508848107,0.05550198,131.52,131.49,0.05403212]
[1725508848609,0.05550198,131.52,131.5,3.802]
[1725508849206,0.05550198,131.52,131.49,3.85633212]
[1725508849405,9.33,131.51,131.49,0.05403212]
[1725508850706,0.05550198,131.52,131.49,3.85633212]
[1725508851007,9.38550198,131.52,131.49,0.05403212]
[1725508851515,9.33,131.51,131.49,0.05403212]
[1725508852311,13.1318,131.51,131.49,0.05403212]
[1725508854416,9.33,131.51,131.49,0.05403212]
[1725508855608,0.05550198,131.52,131.49,0.05403212]
[1725508855917,9.38550198,131.52,131.49,3.85623212]
[1725508856113,0.05550198,131.52,131.49,3.85623212]
[1725508857213,9.38550198,131.52,131.49,3.85623212]
[1725508859312,13.18710198,131.52,131.49,0.05403212]
[1725508860214,9.38550198,131.52,131.49,0.05403212]
[1725508860419,9.33,131.5,131.49,0.05403212]
[1725508861609,13.132,131.5,131.49,0.05403212]
[1725508869224,3.8018,131.51,131.49,0.05403212]
[1725508869423,9.38550198,131.52,131.49,0.05403212]
[1725508869725,0.05550198,131.52,131.49,0.05403212]
[1725508870821,0.05550198,131.52,131.49,3.85613212]
[1725508871319,3.85700198,131.52,131.49,3.85613212]
[1725508871919,9.33,131.51,131.49,0.05403212]
[1725508872627,9.33,131.5,131.49,0.05403212]
[1725508873032,13.132,131.5,131.49,0.05403212]
[1725508873328,13.132,131.5,131.41,2.8464]
[1725508873329,9.33,131.5,131.41,12.1764]
[1725508873523,9.33,131.48,131.42,1.3157]
[1725508873725,13.1324,131.49,131.45,3.8033]
[1725508874227,0.04883347,131.48,131.46,3.85290878]
[1725508874427,0.05854753,131.48,131.46,3.86077173]
[1725508875829,0.05854753,131.48,131.47,3.8029]
[1725508882430,0.05854753,131.48,131.46,3.86077173]
[1725508887341,0.05854753,131.48,131.47,3.8029]
[1725508891947,0.05854753,131.48,131.46,3.86077173]
[1725508898749,0.05854753,131.48,131.46,0.05767173]
[1725508900154,0.05854753,131.48,131.46,3.86067173]
[1725508901753,0.05854753,131.48,131.46,0.05767173]
[1725508905949,9.33,131.47,131.46,0.05767173]
[1725508908658,0.05854753,131.48,131.46,0.05767173]
[1725508908966,9.38854753,131.48,131.46,0.05767173]
[1725508909760,13.19134753,131.48,131.46,0.05767173]
[1725508920675,3.86134753,131.48,131.46,0.05767173]
[1725508921075,13.19134753,131.48,131.46,0.05767173]
[1725508921572,3.8029,131.47,131.46,0.05767173]
[1725508923272,3.8038,131.44,131.39,5.25023409]
[1725508923467,13.1338,131.44,131.39,1.3865]
[1725508923866,13.1338,131.44,131.4,3.8047]
[1725508924275,0.05305342,131.43,131.41,0.05662223]
[1725508926774,9.38305342,131.43,131.41,0.05662223]
[1725508927376,3.8044,131.42,131.41,0.05662223]
[1725508927975,13.16197533,131.43,131.41,0.05662223]
[1725508928280,3.83197533,131.43,131.41,0.05662223]
[1725508928486,13.16197533,131.43,131.41,0.05662223]
[1725508928880,3.8044,131.42,131.41,0.05662223]
[1725508929277,13.16197533,131.43,131.33,1.3449]
[1725508929477,9.33,131.39,131.35,3.8064]
[1725508930085,9.33,131.39,131.32,12.0565]
[1725508930086,9.33,131.37,131.32,2.7265]
[1725508930283,9.33,131.36,131.3,9.33]
[1725508930488,9.33,131.36,131.33,0.05560394]
[1725508930489,9.38683587,131.36,131.33,0.05560394]
[1725508931282,9.33,131.35,131.33,0.05560394]
[1725508931982,0.05683587,131.36,131.33,0.05560394]
[1725508932380,9.33,131.35,131.33,0.05560394]
[1725508932786,0.05683587,131.36,131.34,3.8067]
[1725508933080,9.38683587,131.36,131.34,3.8067]
[1725508933682,0.05683587,131.36,131.35,3.8064]
[1725508934280,3.73412635,131.5,131.34,9.33]
[1725508934585,9.33,131.43,131.37,9.33]
[1725508934784,9.33,131.43,131.37,13.18344499]
[1725508935478,0.0559895,131.41,131.4,3.8047]
[1725508939683,0.0559895,131.41,131.39,3.8564504]
[1725508939989,0.0559895,131.41,131.39,0.0512504]
[1725508940392,0.0559895,131.41,131.4,3.8049]
[1725508940590,228.0,131.58,131.4,9.33]
[1725508940887,228.0,131.58,131.37,3.85344499]
[1725508940888,107.81331291,131.49,131.43,9.33]
[1725508941487,4.0758,131.55,131.45,9.33]
[1725508941691,0.05415717,131.51,131.49,0.05018656]
[1725508942092,0.05415717,131.51,131.5,3.8019]
[1725508942388,0.05415717,131.51,131.49,0.05018656]
[1725508943390,9.38415717,131.51,131.49,0.05018656]
[1725508943889,0.05415717,131.51,131.49,0.05018656]
[1725508950398,3.802,131.5,131.49,0.05018656]
[1725508951007,23.41415717,131.51,131.27,79.30216332]
[1725508951212,23.36,131.48,131.38,23.36]
[1725508951511,23.36,131.47,131.38,23.36]
[1725508952003,3.8035,131.45,131.38,27.10258934]
[1725508952198,0.05518666,131.44,131.41,0.04985202]
[1725508953306,3.85918666,131.44,131.41,0.04985202]
[1725508953614,0.05518666,131.44,131.41,0.04985202]
[1725508954509,3.8041,131.43,131.41,0.04985202]
[1725508954908,0.05518666,131.44,131.41,0.04985202]
[1725508956214,3.8044,131.42,131.41,0.04985202]
[1725508956918,3.8042,131.43,131.41,0.04985202]
[1725508962617,0.05518666,131.44,131.41,0.04985202]
[1725508963511,0.05518666,131.44,131.42,3.8042]
[1725508963916,0.05518666,131.44,131.41,0.04985202]
[1725508964616,0.05518666,131.44,131.42,3.8042]
[1725508967614,0.05518666,131.44,131.43,3.8041]
[1725508967817,23.36,131.51,131.41,23.36]
[1725508968225,3.8023,131.5,131.45,3.8033]
[1725508968622,23.36,131.51,131.45,3.8033]
[1725508969024,0.05673495,131.49,131.47,0.0532587]
[1725508969431,3.85913495,131.49,131.47,0.0532587]
[1725508969626,0.05673495,131.49,131.47,0.0532587]
[1725508970822,3.8026,131.48,131.47,0.0532587]
[1725508971019,0.05673495,131.49,131.47,0.0532587]
[1725508972229,3.85923495,131.49,131.47,0.0532587]
[1725508974027,13.20923495,131.49,131.47,0.0532587]
[1725508976328,3.8026,131.48,131.47,0.0532587]
[1725508977031,13.20913495,131.49,131.47,0.0532587]
[1725508977231,9.40673495,131.49,131.47,0.0532587]
[1725508977429,0.05673495,131.49,131.47,0.0532587]
[1725508980235,0.05673495,131.49,131.47,3.8561587]
[1725508980530,0.05673495,131.49,131.47,0.0532587]
[1725508981929,0.05673495,131.49,131.47,3.8561587]
[1725508982734,0.05673495,131.49,131.47,0.0532587]
[1725508983525,9.35,131.48,131.4,1.3863]
[1725508983728,9.35,131.48,131.41,9.35]
[1725508983931,9.35,131.51,131.44,9.35]
[1725508984128,13.152,131.51,131.46,3.803]
[1725508984331,9.35,131.51,131.46,3.803]
[1725508984531,0.05424368,131.5,131.47,0.04952851]
[1725508984732,3.85634368,131.5,131.47,0.04952851]
[1725508987834,3.8024,131.49,131.47,0.04952851]
[1725508989329,3.8026,131.48,131.47,0.04952851]
[1725508989934,3.8024,131.49,131.47,0.04952851]
[1725508990936,3.8026,131.48,131.47,0.04952851]
[1725508991938,3.8024,131.49,131.47,0.04952851]
[1725508992437,9.40424368,131.5,131.47,0.04952851]
[1725508993327,3.8026,131.48,131.47,0.04952851]
[1725508994537,0.05424368,131.5,131.47,9.39952851]
[1725508995428,0.05424368,131.5,131.48,3.8024]
[1725508996041,0.05424368,131.5,131.47,3.85242851]
[1725508996238,0.05424368,131.5,131.47,0.04952851]
[1725508996745,0.05424368,131.5,131.47,3.85242851]
[1725508997242,0.05424368,131.5,131.47,0.04952851]
[1725508997448,9.40424368,131.5,131.47,0.04952851]
[1725508997940,3.8026,131.48,131.47,0.04952851]
[1725509000538,0.05424368,131.5,131.47,3.85222851]
[1725509000742,0.05424368,131.5,131.47,0.04952851]
[1725509001344,0.05424368,131.5,131.48,3.8026]
[1725509001740,0.05424368,131.5,131.47,0.04952851]
[1725509002941,0.05424368,131.5,131.48,3.8026]
[1725509003142,0.05424368,131.5,131.47,0.04952851]
[1725509003342,0.05424368,131.5,131.48,9.35]
[1725509003941,0.05424368,131.5,131.49,3.8023]
[1725509004146,0.05424368,131.5,131.47,0.04952851]
[1725509004647,0.05424368,131.5,131.48,3.8024]
[1725509007052,0.05424368,131.5,131.49,3.8023]
[1725509007745,0.05424368,131.5,131.48,3.8025]
[1725509010347,0.05424368,131.5,131.48,3.8026]
[1725509011145,0.05424368,131.5,131.49,3.8023]
[1725509017856,2.8082,131.57,131.52,3.8013]
[1725509018053,15.9841679,131.57,131.52,3.8013]
[1725509018459,15.9841679,131.57,131.44,41.5733]
[1725509018460,9.35,131.56,131.5,9.35]
[1725509018850,0.05487361,131.54,131.52,0.04793953]
[1725509020259,0.05487361,131.54,131.52,3.84923953]
[1725509020558,0.05487361,131.54,131.52,0.04793953]
[1725509021559,0.05487361,131.54,131.52,3.84933953]
[1725509022158,0.05487361,131.54,131.53,3.8012]
[1725509023159,0.05487361,131.54,131.53,13.1512]
[1725509023366,9.35,131.62,131.53,9.35]
[1725509023556,47.42121862,131.68,131.58,9.35]
[1725509023757,47.42121862,131.68,131.59,9.35]
[1725509023758,9.35,131.65,131.59,9.35]
[1725509023957,9.35,131.65,131.59,13.08954372]
[1725509024456,0.05719153,131.63,131.61,0.05682938]
[1725509025060,0.05719153,131.63,131.61,9.40682938]
[1725509025360,0.05719153,131.63,131.61,13.20562938]
[1725509026163,0.05719153,131.63,131.61,3.85562938]
[1725509027166,0.05719153,131.63,131.61,0.05682938]
[1725509028767,235.5877,131.79,131.62,9.35]
[1725509028965,235.5877,131.79,131.59,3.73954372]
[1725509028966,9.35,131.72,131.64,9.35]
[1725509029167,3.7963,131.7,131.65,3.7975]
[1725509029465,3.7963,131.7,131.64,9.35]
[1725509029667,3.7971,131.68,131.62,3.7983]
[1725509029863,0.05316964,131.66,131.64,0.05632369]
[1725509030968,0.05316964,131.66,131.64,9.40632369]
[1725509031357,0.05316964,131.66,131.65,3.7977]
[1725509031569,0.05316964,131.66,131.65,13.1477]
[1725509032666,9.35,131.73,131.65,9.35]
[1725509032864,9.35,131.73,131.67,9.35]
[1725509032865,3.7959,131.72,131.67,9.35]
[1725509033267,3.7959,131.72,131.67,13.1469]
[1725509033766,0.05573125,131.71,131.68,0.0547194]
[1725509033969,0.05573125,131.71,131.68,3.8514194]
[1725509034970,0.05573125,131.71,131.69,3.7965]
[1725509036266,0.05573125,131.71,131.7,3.7963]
[1725509041368,0.05573125,131.71,131.68,0.0547194]
[1725509041871,3.85173125,131.71,131.68,0.0547194]
[1725509046974,0.05573125,131.71,131.68,3.8515194]
[1725509048772,3.85193125,131.71,131.68,0.0547194]
[1725509048966,0.05573125,131.71,131.68,0.0547194]
[1725509050274,3.85183125,131.71,131.68,0.0547194]
[1725509050681,0.05573125,131.71,131.68,0.0547194]
[1725509050880,3.7966,131.69,131.68,0.0547194]
[1725509052082,3.7974,131.66,131.63,3.7983]
[1725509052380,1.4222,131.7,131.63,3.7983]
[1725509053174,3.85554754,131.68,131.65,0.05822685]
[1725509054180,3.7971,131.67,131.65,0.05822685]
[1725509058789,3.85534754,131.68,131.65,0.05822685]
[1725509060487,0.05844754,131.68,131.65,9.38822685]
[1725509060690,0.05844754,131.68,131.66,3.7788685]
[1725509060892,0.05844754,131.68,131.66,3.79519929]
[1725509061497,0.05844754,131.68,131.67,9.33]
[1725509061691,0.05844754,131.68,131.67,13.07316864]
[1725509061989,0.05844754,131.68,131.67,9.33]
[1725509062989,0.05844754,131.68,131.67,13.1271]
[1725509063188,22.84,131.81,131.67,9.33]
[1725509063189,9.33,131.77,131.67,9.33]
[1725509063393,9.33,131.77,131.71,9.33]
[1725509063690,3.7949,131.75,131.71,9.33]
[1725509064293,0.05060222,131.74,131.72,0.05330833]
[1725509066997,0.05060222,131.74,131.72,3.84880833]
[1725509067693,0.05060222,131.74,131.72,0.05330833]
[1725509068498,3.7954,131.73,131.72,0.05330833]
[1725509071594,13.1254,131.73,131.72,0.05330833]
[1725509071798,3.7964,131.7,131.65,9.33]
[1725509072100,3.7964,131.7,131.66,3.7972]
[1725509072398,3.7964,131.7,131.66,3.7110858]
[1725509072797,0.05012336,131.69,131.67,0.05000844]
[1725509073402,0.05012336,131.69,131.67,3.84710844]
[1725509077199,0.05012336,131.69,131.67,0.05000844]
[1725509077395,3.84672336,131.69,131.67,0.05000844]
[1725509077597,0.05012336,131.69,131.67,0.05000844]
[1725509077897,3.7968,131.68,131.67,0.05000844]
[1725509080101,3.84692336,131.69,131.67,0.05000844]
[1725509080998,0.05012336,131.69,131.67,0.05000844]
[1725509083805,3.84672336,131.69,131.67,0.05000844]
[1725509085307,3.7968,131.68,131.67,0.05000844]
[1725509087006,3.7975,131.66,131.55,37.32]
[1725509087205,9.33,131.66,131.6,1.3273]
[1725509087406,9.33,131.65,131.59,7.53894372]
[1725509087604,3.7986,131.62,131.57,1.4235]
[1725509087913,3.7986,131.62,131.58,3.71402278]
[1725509088112,0.04883225,131.61,131.59,0.05407877]
[1725509094406,0.04883225,131.61,131.59,3.85347877]
[1725509102419,0.04883225,131.61,131.59,0.05407877]
[1725509103918,0.04883225,131.61,131.59,3.85327877]
[1725509105425,0.04883225,131.61,131.59,0.05407877]
[1725509106224,3.84773225,131.61,131.59,0.05407877]
[1725509107320,0.04883225,131.61,131.59,0.05407877]
[1725509108422,3.7992,131.6,131.59,0.05407877]
[1725509108623,0.04883225,131.61,131.59,0.05407877]
[1725509110019,0.04883225,131.61,131.59,3.85347877]
[1725509111422,0.04883225,131.61,131.6,3.7992]
[1725509112529,0.04883225,131.61,131.6,13.1392]
[1725509112924,0.04883225,131.61,131.6,14.5191]
[1725509113628,3.7974,131.66,131.62,3.7986]
[1725509114730,0.0550482,131.65,131.63,0.05608856]
[1725509115833,0.0550482,131.65,131.63,3.85438856]
[1725509116228,0.0550482,131.65,131.63,9.39608856]
[1725509116423,0.0550482,131.65,131.64,3.88419478]
[1725509116733,0.0550482,131.65,131.63,9.39608856]
[1725509116936,0.0550482,131.65,131.64,3.798]
[1725509120128,0.0550482,131.65,131.63,3.85438856]
[1725509120329,0.0550482,131.65,131.63,0.05608856]
[1725509121642,3.8528482,131.65,131.63,0.05608856]
[1725509123938,9.34,131.64,131.38,104.08552577]
[1725509124140,9.34,131.62,131.55,9.34]
[1725509124340,9.34,131.62,131.56,9.34]
[1725509124549,10.7129,131.64,131.58,3.7995]
[1725509124752,10.7129,131.64,131.58,7.58018428]
[1725509125038,10.7129,131.64,131.6,0.04861237]
[1725509125039,0.05017605,131.62,131.6,0.04861237]
[1725509125342,3.84887605,131.62,131.6,0.04861237]
[1725509127242,3.7989,131.61,131.6,0.04861237]
[1725509134653,3.84887605,131.62,131.6,0.04861237]
[1725509135047,0.05017605,131.62,131.6,0.04861237]
[1725509135754,3.84897605,131.62,131.6,0.04861237]
[1725509136255,3.7989,131.61,131.6,0.04861237]
[1725509137148,3.84887605,131.62,131.6,0.04861237]
[1725509137549,3.7989,131.61,131.6,0.04861237]
[1725509159170,13.1389,131.61,131.6,0.04861237]
[1725509159371,0.05017605,131.62,131.54,9.34]
[1725509159565,9.34,131.62,131.54,9.34]
[1725509160070,9.34,131.63,131.56,9.34]
[1725509160272,0.05634385,131.61,131.58,0.05082949]
[1725509160469,0.05634385,131.61,131.59,9.34]
[1725509160777,0.05634385,131.61,131.58,3.88776996]
[1725509161068,0.05634385,131.61,131.6,3.7992]
[1725509162768,3.7982,131.64,131.6,3.7992]
[1725509163269,3.78437927,131.68,131.61,9.34]
[1725509163471,9.34,131.68,131.61,9.34]
[1725509163672,13.12486207,131.68,131.61,9.34]
[1725509163865,0.04962883,131.66,131.63,0.05739734]
[1725509165769,3.84722883,131.66,131.63,0.05739734]
[1725509167279,9.34,131.65,131.63,0.05739734]
[1725509168381,3.798,131.64,131.63,0.05739734]
[1725509170079,3.7978,131.65,131.63,0.05739734]
[1725509170475,0.04962883,131.66,131.64,3.7978]
[1725509170673,0.04962883,131.66,131.63,9.39739734]
[1725509170873,254.64894525,131.75,131.64,9.34]
[1725509171075,9.34,131.72,131.64,10.7802]
[1725509171777,9.34,131.72,131.66,3.7974]
[1725509171975,9.34,131.72,131.68,0.05292731]
[1725509171976,0.05016751,131.7,131.68,0.05292731]
[1725509174284,3.84646751,131.7,131.68,0.05292731]
[1725509179982,0.05016751,131.7,131.68,0.05292731]
[1725509180184,0.05016751,131.7,131.68,9.39292731]
[1725509180981,0.05016751,131.7,131.69,3.7966]
[1725509183883,9.34,131.75,131.69,9.34]
[1725509183884,3.7952,131.74,131.69,9.34]
[1725509184083,3.7952,131.74,131.69,10.7783]
[1725509184487,9.34,131.75,131.69,10.7783]
[1725509184687,3.7948,131.76,131.69,10.7783]
[1725509184890,0.04815182,131.74,131.71,0.05483722]
[1725509186290,3.7956,131.73,131.71,0.05483722]
[1725509186487,0.04815182,131.74,131.71,0.05483722]
[1725509187295,3.84335182,131.74,131.71,0.05483722]
[1725509187688,0.04815182,131.74,131.71,3.85073722]
[1725509190883,0.04815182,131.74,131.72,3.7956]
[1725509193089,0.04815182,131.74,131.73,3.7954]
[1725509193290,0.04815182,131.74,131.73,7.67779313]
[1725509193592,0.04815182,131.74,131.73,3.7954]
[1725509193994,0.04815182,131.74,131.73,7.68272822]
[1725509199194,3.7941,131.78,131.74,3.795]
[1725509199601,3.7941,131.78,131.74,13.135]
[1725509199995,3.7941,131.78,131.73,3.88732822]
[1725509199996,3.7944,131.77,131.73,13.22732822]
[1725509200197,0.04967281,131.76,131.74,0.05363171]
[1725509200595,0.04967281,131.76,131.74,13.18853171]
[1725509200797,0.04967281,131.76,131.74,16.89108257]
[1725509201100,0.04967281,131.76,131.75,3.7948]
[1725509201705,0.04967281,131.76,131.74,16.89118257]
[1725509201900,0.04967281,131.76,131.74,3.75618257]
[1725509202209,0.04967281,131.76,131.74,7.55108257]
[1725509208210,0.04967281,131.76,131.74,16.89108257]
[1725509208412,0.04967281,131.76,131.75,3.7948]
[1725509209010,0.04967281,131.76,131.74,16.89118257]
[1725509213015,0.04967281,131.76,131.74,0.05363171]
[1725509216322,3.84427281,131.76,131.74,0.05363171]
[1725509217018,0.04967281,131.76,131.74,0.05363171]
[1725509217222,0.04967281,131.76,131.74,9.39363171]
[1725509218625,0.04967281,131.76,131.74,13.18863171]
[1725509218822,0.04967281,131.76,131.75,9.34]
[1725509221220,0.04967281,131.76,131.75,13.1348]
[1725509221817,3.7935,131.8,131.76,3.7943]
[1725509222017,3.7935,131.8,131.77,9.34]
[1725509223023,3.84627452,131.8,131.77,9.39136831]
[1725509223223,3.84627452,131.8,131.77,13.18556831]
[1725509225129,0.05277452,131.8,131.77,13.18556831]
[1725509225620,0.05277452,131.8,131.77,3.84556831]
[1725509227932,0.05277452,131.8,131.78,9.34]
[1725509228625,3.84617452,131.8,131.77,0.05136831]
[1725509230621,0.05277452,131.8,131.77,3.84536831]
[1725509231631,3.84617452,131.8,131.77,3.84536831]
[1725509232331,0.05277452,131.8,131.79,13.1337]
[1725509237034,0.05277452,131.8,131.79,9.34]
[1725509237430,0.05277452,131.8,131.79,13.1337]
[1725509237734,0.05277452,131.8,131.79,3.7937]
[1725509237922,0.05277452,131.8,131.79,13.1337]
[1725509240429,3.7925,131.84,131.81,9.34]
[1725509240626,3.7925,131.84,131.81,13.15127462]
[1725509241430,3.84111299,131.84,131.81,13.20791062]
[1725509241635,0.04861299,131.84,131.81,17.00091062]
[1725509244439,0.04861299,131.84,131.83,13.1325]
[1725509246841,0.04861299,131.84,131.83,9.34]
[1725509248046,0.04861299,131.84,131.83,13.1325]
[1725509249543,0.04861299,131.84,131.83,3.7925]
[1725509249739,0.04861299,131.84,131.83,13.1325]
[1725509250239,1.3348,131.93,131.83,9.34]
[1725509250439,9.61884366,131.92,131.85,9.34]
[1725509250634,3.7908,131.89,131.85,9.34]
[1725509251339,0.05438365,131.88,131.86,0.0505432]
[1725509252144,3.84548365,131.88,131.86,0.0505432]
[1725509252345,0.05438365,131.88,131.86,0.0505432]
[1725509255345,0.05438365,131.88,131.86,9.3905432]
[1725509256951,0.05438365,131.88,131.86,0.0505432]
[1725509258344,3.7914,131.87,131.86,0.0505432]
[1725509269963,9.39438365,131.88,131.78,2.8253]
[1725509270159,63.94471773,131.92,131.78,2.8253]
[1725509270160,9.34,131.85,131.79,9.34]
[1725509270353,2.7446,131.87,131.8,13.15125777]
[1725509270354,12.0846,131.87,131.8,13.15125777]
[1725509271067,0.0558632,131.85,131.82,0.05016027]
[1725509271266,0.0555173,131.85,131.82,0.04825834]
[1725509272467,0.0555173,131.85,131.83,9.34]
[1725509273262,0.0555173,131.85,131.83,13.1325]
[1725509275670,0.0555173,131.85,131.84,9.34]
[1725509276868,0.0555173,131.85,131.84,13.1322]
[1725509279773,0.0555173,131.85,131.84,3.7922]
[1725509279974,0.0555173,131.85,131.83,5.1841]
[1725509280176,0.0555173,131.85,131.84,9.34]
[1725509281076,0.0555173,131.85,131.83,9.34]
[1725509281778,0.0555173,131.85,131.84,9.34]
[1725509282180,0.0555173,131.85,131.84,13.1322]
[1725509286981,0.0555173,131.85,131.84,9.34]
[1725509287179,0.0555173,131.85,131.82,1.35595834]
[1725509287378,0.0555173,131.85,131.82,10.69595834]
[1725509287571,0.0555173,131.85,131.84,9.34]
[1725509289273,0.0555173,131.85,131.84,13.1322]
[1725509289583,13.14471773,131.92,131.84,9.34]
[1725509289780,3.80471773,131.92,131.86,9.34]
[1725509290276,3.7907,131.9,131.86,9.34]
[1725509290471,2.7081,131.94,131.82,1.3077]
[1725509290472,3.76005158,131.94,131.88,9.34]
[1725509290675,0.05590182,131.92,131.9,0.04806653]
[1725509291076,3.7902,131.91,131.9,0.04806653]
[1725509291878,3.84590182,131.92,131.9,0.04806653]
[1725509292779,3.7902,131.91,131.9,0.04806653]
[1725509299091,0.05590182,131.92,131.9,0.04806653]
[1725509299293,0.05590182,131.92,131.9,9.38806653]
[1725509302291,0.05590182,131.92,131.91,9.34]
[1725509302691,0.05590182,131.92,131.9,0.04806653]
[1725509303391,3.84590182,131.92,131.9,0.04806653]
[1725509305197,3.7902,131.91,131.9,0.04806653]
[1725509307296,3.84610182,131.92,131.9,0.04806653]
[1725509307499,0.05590182,131.92,131.9,0.04806653]
[1725509308501,3.7902,131.91,131.9,0.04806653]
[1725509310200,3.84590182,131.92,131.9,0.04806653]
[1725509310891,0.05590182,131.92,131.9,0.04806653]
[1725509311305,0.05590182,131.92,131.9,9.38806653]
[1725509314392,3.84580182,131.92,131.9,0.04806653]
[1725509316195,0.05590182,131.92,131.9,0.04806653]
[1725509316501,0.05590182,131.92,131.9,9.38806653]
[1725509317104,0.05590182,131.92,131.9,13.17846653]
[1725509317402,0.05590182,131.92,131.9,9.38806653]
[1725509317599,0.05590182,131.92,131.91,9.34]
[1725509321300,0.05590182,131.92,131.9,0.04806653]
[1725509321608,0.05590182,131.92,131.91,9.34]
[1725509326902,0.05590182,131.92,131.91,13.1302]
[1725509327511,1.389,131.99,131.91,9.34]
[1725509327704,1.389,131.99,131.93,9.34]
[1725509328104,121.08229167,132.02,131.95,9.34]
[1725509328305,0.27867994,132.0,131.95,9.34]
[1725509328510,0.27867994,132.0,131.96,0.05635896]
[1725509328703,9.61867994,132.0,131.96,0.05635896]